[Event "November 21 Early 2023"]
[Site "https://www.chess.com"]
[Date "2023.11.21"]
[Round "10"]
[White "Carlsen, Magnus"]
[Black "Erigaisi Arjun"]
[Result "1-0"]
[Board "1"]
[TimeControl "180+1"]
[WhiteFideId "1503014"]
[BlackFideId "35009192"]
[WhiteElo "2887"]
[BlackElo "2729"]
[WhiteTeam "NOR"]
[BlackTeam "IND"]
[WhiteClock "0:00:45"]
[BlackClock "0:00:00"]

1. a4 {[%clk 0:02:59]}  Nf6 {[%clk 0:02:59]} 2. Nf3 {[%clk 0:02:43]}  g6 {[%clk 0:02:57]} 3. g3 {[%clk 0:02:43]}  Bg7 {[%clk 0:02:57]} 4. Bg2 {[%clk 0:02:44]}  O-O {[%clk 0:02:57]} 5. O-O {[%clk 0:02:44]}  c5 {[%clk 0:02:58]} 6. Nc3 {[%clk 0:02:36]}  Nc6 {[%clk 0:02:57]} 7. d4 {[%clk 0:02:36]}  cxd4 {[%clk 0:02:56]} 8. Nxd4 {[%clk 0:02:37]}  d5 {[%clk 0:02:57]} 9. Nb3 {[%clk 0:02:36]}  d4 {[%clk 0:02:48]} 10. Ne4 {[%clk 0:02:28]}  Nd5 {[%clk 0:02:37]} 11. a5 {[%clk 0:02:27]}  Bf5 {[%clk 0:02:34]} 12. Nec5 {[%clk 0:02:24]}  Ncb4 {[%clk 0:02:18]} 13. Nxd4 {[%clk 0:02:12]}  Bxd4 {[%clk 0:02:19]} 14. Qxd4 {[%clk 0:02:12]}  Nxc2 {[%clk 0:02:19]} 15. Qxd5 {[%clk 0:02:12]}  Nxa1 {[%clk 0:01:59]} 16. Bh6 {[%clk 0:02:12]}  Qxd5 {[%clk 0:01:33]} 17. Bxd5 {[%clk 0:02:13]}  Rfc8 {[%clk 0:01:28]} 18. Bxb7 {[%clk 0:01:58]}  Rxc5 {[%clk 0:01:28]} 19. Bxa8 {[%clk 0:01:58]}  Rxa5 {[%clk 0:01:05]} 20. Rd1 {[%clk 0:01:58]}  f6 {[%clk 0:01:03]} 21. Bd5+ {[%clk 0:01:55]}  e6 {[%clk 0:01:01]} 22. Bc4 {[%clk 0:01:55]}  g5 {[%clk 0:00:54]} 23. f3 {[%clk 0:01:18]}  Bh3 {[%clk 0:00:27]} 24. g4 {[%clk 0:01:12]}  Kf7 {[%clk 0:00:26]} 25. Rd7+ {[%clk 0:01:12]}  Ke8 {[%clk 0:00:24]} 26. Rxh7 {[%clk 0:01:05]}  Nc2 {[%clk 0:00:22]} 27. Kf2 {[%clk 0:01:06]}  Ra1 {[%clk 0:00:18]} 28. Bxg5 {[%clk 0:01:06]}  Rf1+ {[%clk 0:00:12]} 29. Kg3 {[%clk 0:01:06]}  Rg1+ {[%clk 0:00:12]} 30. Kxh3 {[%clk 0:01:00]}  fxg5 {[%clk 0:00:12]} 31. Rg7 {[%clk 0:00:58]}  Ne3 {[%clk 0:00:10]} 32. Bd3 {[%clk 0:00:56]}  Nd5 {[%clk 0:00:06]} 33. Rxg5 {[%clk 0:00:57]}  Ke7 {[%clk 0:00:04]} 34. Kh4 {[%clk 0:00:55]}  Nf4 {[%clk 0:00:03]} 35. Ra5 {[%clk 0:00:52]}  Kf6 {[%clk 0:00:03]} 36. g5+ {[%clk 0:00:52]}  Ke7 {[%clk 0:00:03]} 37. Rxa7+ {[%clk 0:00:52]}  Kd6 {[%clk 0:00:03]} 38. Ra4 {[%clk 0:00:48]}  e5 {[%clk 0:00:04]} 39. Rxf4 {[%clk 0:00:45]}  exf4 {[%clk 0:00:04]} 40. Kh5 {[%clk 0:00:46]}  Ke7 {[%clk 0:00:02]} 41. h4 {[%clk 0:00:46]}  Kf8 {[%clk 0:00:03]} 42. Kg6 {[%clk 0:00:46]}  Kg8 {[%clk 0:00:03]} 43. h5 {[%clk 0:00:46]}  Kh8 {[%clk 0:00:03]} 44. h6 {[%clk 0:00:46]}  Rg2 {[%clk 0:00:03]} 45. b4 {[%clk 0:00:46]}  Rg1 {[%clk 0:00:03]} 46. b5 {[%clk 0:00:47]}  Rc1 {[%clk 0:00:03]} 47. Kf5 {[%clk 0:00:46]}  Rc5+ {[%clk 0:00:04]} 48. Kxf4 {[%clk 0:00:46]}  Rd5 {[%clk 0:00:04]} 49. g6 {[%clk 0:00:46]}  Rc5 {[%clk 0:00:00]} 50. b6 {[%clk 0:00:45]} 1-0

[Event "November 21 Early 2023"]
[Site "https://www.chess.com"]
[Date "2023.11.21"]
[Round "10"]
[White "Le, Quang Liem"]
[Black "Liang, Awonder"]
[Result "1-0"]
[Board "2"]
[TimeControl "180+1"]
[WhiteFideId "12401137"]
[BlackFideId "2056437"]
[WhiteElo "2665"]
[BlackElo "2527"]
[WhiteTeam "VIE"]
[BlackTeam "USA"]
[WhiteClock "0:01:59"]
[BlackClock "0:00:46"]

1. Nf3 {[%clk 0:03:00]}  Nf6 {[%clk 0:02:59]} 2. c4 {[%clk 0:03:00]}  e6 {[%clk 0:02:59]} 3. Nc3 {[%clk 0:02:58]}  d5 {[%clk 0:03:00]} 4. e3 {[%clk 0:02:55]}  Be7 {[%clk 0:02:54]} 5. b3 {[%clk 0:02:55]}  O-O {[%clk 0:02:54]} 6. Bb2 {[%clk 0:02:55]}  dxc4 {[%clk 0:02:55]} 7. bxc4 {[%clk 0:02:54]}  b6 {[%clk 0:02:53]} 8. d4 {[%clk 0:02:47]}  Bb7 {[%clk 0:02:53]} 9. Bd3 {[%clk 0:02:47]}  c5 {[%clk 0:02:53]} 10. d5 {[%clk 0:02:48]}  exd5 {[%clk 0:02:51]} 11. cxd5 {[%clk 0:02:48]}  Nxd5 {[%clk 0:02:28]} 12. Be4 {[%clk 0:02:48]}  Bf6 {[%clk 0:02:28]} 13. Nxd5 {[%clk 0:02:17]}  Bxb2 {[%clk 0:02:28]} 14. Rb1 {[%clk 0:02:18]}  Bc6 {[%clk 0:00:54]} 15. Rxb2 {[%clk 0:02:16]}  f5 {[%clk 0:00:46]} 16. Ne7+ {[%clk 0:01:59]} 1-0

[Event "November 21 Early 2023"]
[Site "https://www.chess.com"]
[Date "2023.11.21"]
[Round "10"]
[White "Dubov, Daniil"]
[Black "Nihal Sarin"]
[Result "0-1"]
[Board "3"]
[TimeControl "180+1"]
[WhiteFideId "24126055"]
[BlackFideId "25092340"]
[WhiteElo "2767"]
[BlackElo "2689"]
[WhiteTeam "RUS"]
[BlackTeam "IND"]
[WhiteClock "0:00:00"]
[BlackClock "0:00:04"]

1. d4 {[%clk 0:02:55]}  Nf6 {[%clk 0:02:55]} 2. Nf3 {[%clk 0:02:54]}  d5 {[%clk 0:02:54]} 3. c4 {[%clk 0:02:54]}  e6 {[%clk 0:02:55]} 4. g3 {[%clk 0:02:54]}  Bb4+ {[%clk 0:02:46]} 5. Nbd2 {[%clk 0:02:53]}  O-O {[%clk 0:02:46]} 6. Bg2 {[%clk 0:02:53]}  b6 {[%clk 0:02:45]} 7. O-O {[%clk 0:02:52]}  Bb7 {[%clk 0:02:45]} 8. Ne5 {[%clk 0:02:53]}  a5 {[%clk 0:02:46]} 9. Qc2 {[%clk 0:02:52]}  c5 {[%clk 0:02:39]} 10. Ndf3 {[%clk 0:02:43]}  cxd4 {[%clk 0:02:32]} 11. Nxd4 {[%clk 0:02:30]}  Bc5 {[%clk 0:02:24]} 12. Rd1 {[%clk 0:02:23]}  Nbd7 {[%clk 0:01:50]} 13. Nxd7 {[%clk 0:01:52]}  Qxd7 {[%clk 0:01:51]} 14. Bg5 {[%clk 0:01:52]}  Ne4 {[%clk 0:01:48]} 15. Be3 {[%clk 0:01:45]}  Nf6 {[%clk 0:01:39]} 16. Bg5 {[%clk 0:01:39]}  Ng4 {[%clk 0:01:07]} 17. cxd5 {[%clk 0:01:10]}  Bxd5 {[%clk 0:01:02]} 18. h3 {[%clk 0:00:45]}  Nxf2 {[%clk 0:00:47]} 19. Kxf2 {[%clk 0:00:45]}  e5 {[%clk 0:00:48]} 20. Be3 {[%clk 0:00:41]}  exd4 {[%clk 0:00:18]} 21. Bxd4 {[%clk 0:00:41]}  Bxg2 {[%clk 0:00:17]} 22. Bxc5 {[%clk 0:00:30]}  Qc6 {[%clk 0:00:17]} 23. Rd6 {[%clk 0:00:30]}  Qc7 {[%clk 0:00:17]} 24. Kxg2 {[%clk 0:00:28]}  bxc5 {[%clk 0:00:17]} 25. Rad1 {[%clk 0:00:28]}  Rab8 {[%clk 0:00:16]} 26. b3 {[%clk 0:00:26]}  Rfe8 {[%clk 0:00:16]} 27. R1d2 {[%clk 0:00:20]}  Rxe2+ {[%clk 0:00:15]} 28. Rxe2 {[%clk 0:00:19]}  Qxd6 {[%clk 0:00:16]} 29. Qe4 {[%clk 0:00:19]}  g6 {[%clk 0:00:15]} 30. Qe5 {[%clk 0:00:18]}  Qc6+ {[%clk 0:00:15]} 31. Qe4 {[%clk 0:00:19]}  Qb6 {[%clk 0:00:15]} 32. Qf3 {[%clk 0:00:13]}  Qd6 {[%clk 0:00:12]} 33. h4 {[%clk 0:00:09]}  h5 {[%clk 0:00:12]} 34. Rf2 {[%clk 0:00:08]}  Qc7 {[%clk 0:00:11]} 35. Qf4 {[%clk 0:00:08]}  Qb7+ {[%clk 0:00:11]} 36. Qf3 {[%clk 0:00:09]}  Qc7 {[%clk 0:00:11]} 37. Qf4 {[%clk 0:00:09]}  Qa7 {[%clk 0:00:11]} 38. Kh2 {[%clk 0:00:08]}  Re8 {[%clk 0:00:10]} 39. Rc2 {[%clk 0:00:07]}  Re6 {[%clk 0:00:08]} 40. Qf2 {[%clk 0:00:06]}  Re5 {[%clk 0:00:08]} 41. Rd2 {[%clk 0:00:05]}  Qe7 {[%clk 0:00:08]} 42. Qf3 {[%clk 0:00:05]}  Re4 {[%clk 0:00:07]} 43. Qf2 {[%clk 0:00:05]}  Qe5 {[%clk 0:00:07]} 44. Rc2 {[%clk 0:00:05]}  Rxh4+ {[%clk 0:00:07]} 45. Kg1 {[%clk 0:00:05]}  Rd4 {[%clk 0:00:07]} 46. Re2 {[%clk 0:00:04]}  Qd5 {[%clk 0:00:08]} 47. Re8+ {[%clk 0:00:02]}  Kg7 {[%clk 0:00:08]} 48. Qe3 {[%clk 0:00:02]}  Rd1+ {[%clk 0:00:06]} 49. Kf2 {[%clk 0:00:03]}  Rd2+ {[%clk 0:00:07]} 50. Ke1 {[%clk 0:00:03]}  Rxa2 {[%clk 0:00:06]} 51. Qe5+ {[%clk 0:00:03]}  Qxe5+ {[%clk 0:00:07]} 52. Rxe5 {[%clk 0:00:04]}  Rg2 {[%clk 0:00:06]} 53. Re3 {[%clk 0:00:04]}  Rc2 {[%clk 0:00:05]} 54. Kd1 {[%clk 0:00:04]}  Rb2 {[%clk 0:00:06]} 55. Rc3 {[%clk 0:00:03]}  Rg2 {[%clk 0:00:05]} 56. Ke1 {[%clk 0:00:03]}  Rb2 {[%clk 0:00:03]} 57. Kf1 {[%clk 0:00:03]}  Kf6 {[%clk 0:00:03]} 58. Ke1 {[%clk 0:00:01]}  Ke6 {[%clk 0:00:04]} 59. Rxc5 {[%clk 0:00:01]}  Rxb3 {[%clk 0:00:04]} 60. Kf2 {[%clk 0:00:02]}  Ra3 {[%clk 0:00:04]} 61. Rxa5 {[%clk 0:00:00]}  Rxa5 {[%clk 0:00:04]} 0-1

[Event "November 21 Early 2023"]
[Site "https://www.chess.com"]
[Date "2023.11.21"]
[Round "10"]
[White "Maghsoodloo, Parham"]
[Black "Nakamura, Hikaru"]
[Result "1-0"]
[Board "5"]
[TimeControl "180+1"]
[WhiteFideId "12539929"]
[BlackFideId "2016192"]
[WhiteElo "2660"]
[BlackElo "2874"]
[WhiteTeam "IRI"]
[BlackTeam "USA"]
[WhiteClock "0:00:07"]
[BlackClock "0:00:06"]

1. d4 {[%clk 0:03:00]}  a5 {[%clk 0:03:00]} 2. c4 {[%clk 0:03:00]}  e6 {[%clk 0:02:57]} 3. Nc3 {[%clk 0:03:00]}  Bb4 {[%clk 0:02:57]} 4. Bd2 {[%clk 0:03:00]}  Nf6 {[%clk 0:02:57]} 5. e3 {[%clk 0:02:59]}  b6 {[%clk 0:02:57]} 6. Nge2 {[%clk 0:02:56]}  Bb7 {[%clk 0:02:57]} 7. Qc2 {[%clk 0:02:53]}  d5 {[%clk 0:02:54]} 8. cxd5 {[%clk 0:02:51]}  exd5 {[%clk 0:02:55]} 9. Ng3 {[%clk 0:02:41]}  g6 {[%clk 0:02:54]} 10. Bd3 {[%clk 0:02:37]}  O-O {[%clk 0:02:48]} 11. O-O {[%clk 0:02:37]}  Ba6 {[%clk 0:02:41]} 12. Rac1 {[%clk 0:02:33]}  c6 {[%clk 0:02:33]} 13. Nge2 {[%clk 0:02:20]}  Re8 {[%clk 0:02:18]} 14. f3 {[%clk 0:02:18]}  c5 {[%clk 0:02:17]} 15. Bxa6 {[%clk 0:02:16]}  Nxa6 {[%clk 0:02:18]} 16. a3 {[%clk 0:01:55]}  Bxc3 {[%clk 0:02:14]} 17. Nxc3 {[%clk 0:01:49]}  cxd4 {[%clk 0:02:04]} 18. exd4 {[%clk 0:01:48]}  Nc7 {[%clk 0:02:05]} 19. Qd3 {[%clk 0:01:29]}  Ne6 {[%clk 0:02:04]} 20. f4 {[%clk 0:01:06]}  Ng7 {[%clk 0:01:23]} 21. f5 {[%clk 0:00:37]}  Nxf5 {[%clk 0:01:23]} 22. Rxf5 {[%clk 0:00:38]}  gxf5 {[%clk 0:01:23]} 23. Qg3+ {[%clk 0:00:36]}  Kh8 {[%clk 0:01:20]} 24. Bg5 {[%clk 0:00:36]}  Re6 {[%clk 0:01:13]} 25. Qh4 {[%clk 0:00:32]}  Rc8 {[%clk 0:00:44]} 26. Rf1 {[%clk 0:00:31]}  Rcc6 {[%clk 0:00:30]} 27. Rxf5 {[%clk 0:00:31]}  Qd6 {[%clk 0:00:31]} 28. Bf4 {[%clk 0:00:26]}  Qe7 {[%clk 0:00:21]} 29. Be5 {[%clk 0:00:23]}  Kg8 {[%clk 0:00:21]} 30. h3 {[%clk 0:00:12]}  Ne4 {[%clk 0:00:17]} 31. Qg4+ {[%clk 0:00:08]}  Rg6 {[%clk 0:00:17]} 32. Nxd5 {[%clk 0:00:09]}  Qxe5 {[%clk 0:00:11]} 33. Rxe5 {[%clk 0:00:03]}  Rc1+ {[%clk 0:00:12]} 34. Kh2 {[%clk 0:00:03]}  Rxg4 {[%clk 0:00:13]} 35. hxg4 {[%clk 0:00:04]}  Nf2 {[%clk 0:00:13]} 36. Kg3 {[%clk 0:00:04]}  Nd3 {[%clk 0:00:14]} 37. Re2 {[%clk 0:00:04]}  Rc4 {[%clk 0:00:14]} 38. Ne7+ {[%clk 0:00:04]}  Kf8 {[%clk 0:00:14]} 39. Nf5 {[%clk 0:00:05]}  a4 {[%clk 0:00:13]} 40. Rd2 {[%clk 0:00:05]}  Nc1 {[%clk 0:00:13]} 41. d5 {[%clk 0:00:05]}  Nb3 {[%clk 0:00:14]} 42. Rd1 {[%clk 0:00:05]}  Rc1 {[%clk 0:00:13]} 43. Rd3 {[%clk 0:00:02]}  Nc5 {[%clk 0:00:12]} 44. Re3 {[%clk 0:00:02]}  Rd1 {[%clk 0:00:11]} 45. d6 {[%clk 0:00:03]}  Rd5 {[%clk 0:00:09]} 46. Kf3 {[%clk 0:00:02]}  h5 {[%clk 0:00:09]} 47. Kf4 {[%clk 0:00:02]}  Ne6+ {[%clk 0:00:09]} 48. Kg3 {[%clk 0:00:02]}  hxg4 {[%clk 0:00:09]} 49. Kxg4 {[%clk 0:00:03]}  Nd4 {[%clk 0:00:09]} 50. Nxd4 {[%clk 0:00:01]}  Rxd4+ {[%clk 0:00:10]} 51. Kf3 {[%clk 0:00:02]}  Rxd6 {[%clk 0:00:11]} 52. Re4 {[%clk 0:00:02]}  b5 {[%clk 0:00:11]} 53. Rb4 {[%clk 0:00:03]}  Rd5 {[%clk 0:00:11]} 54. Ke4 {[%clk 0:00:03]}  Rg5 {[%clk 0:00:11]} 55. Kf3 {[%clk 0:00:03]}  Ke7 {[%clk 0:00:11]} 56. g4 {[%clk 0:00:03]}  Kd6 {[%clk 0:00:12]} 57. Kf4 {[%clk 0:00:04]}  Rc5 {[%clk 0:00:12]} 58. g5 {[%clk 0:00:04]}  Ke6 {[%clk 0:00:11]} 59. Kg4 {[%clk 0:00:04]}  Re5 {[%clk 0:00:08]} 60. Rf4 {[%clk 0:00:04]}  Re2 {[%clk 0:00:07]} 61. Rb4 {[%clk 0:00:04]}  Re5 {[%clk 0:00:08]} 62. Rf4 {[%clk 0:00:04]}  Ke7 {[%clk 0:00:08]} 63. Rf5 {[%clk 0:00:03]}  Ke6 {[%clk 0:00:04]} 64. Rf6+ {[%clk 0:00:02]}  Ke7 {[%clk 0:00:04]} 65. Rb6 {[%clk 0:00:02]}  Kf8 {[%clk 0:00:03]} 66. Kf4 {[%clk 0:00:03]}  Rc5 {[%clk 0:00:04]} 67. Kg4 {[%clk 0:00:03]}  Kg7 {[%clk 0:00:04]} 68. Kh5 {[%clk 0:00:03]}  Rd5 {[%clk 0:00:04]} 69. Rb7 {[%clk 0:00:04]}  Re5 {[%clk 0:00:04]} 70. Kg4 {[%clk 0:00:04]}  Rc5 {[%clk 0:00:05]} 71. Kf4 {[%clk 0:00:04]}  Kf8 {[%clk 0:00:04]} 72. Rb6 {[%clk 0:00:04]}  Ke7 {[%clk 0:00:05]} 73. Kg4 {[%clk 0:00:05]}  Kf8 {[%clk 0:00:05]} 74. Kh5 {[%clk 0:00:05]}  Kg7 {[%clk 0:00:05]} 75. Rb7 {[%clk 0:00:05]}  Rd5 {[%clk 0:00:06]} 76. Kg4 {[%clk 0:00:06]}  Rd4+ {[%clk 0:00:07]} 77. Kf5 {[%clk 0:00:06]}  Rd5+ {[%clk 0:00:06]} 78. Kf4 {[%clk 0:00:07]}  Kg6 {[%clk 0:00:07]} 79. Rb6+ {[%clk 0:00:07]}  Kh7 {[%clk 0:00:07]} 80. Rf6 {[%clk 0:00:06]}  Kg8 {[%clk 0:00:07]} 81. Rf5 {[%clk 0:00:05]}  Rxf5+ {[%clk 0:00:04]} 82. Kxf5 {[%clk 0:00:06]}  Kg7 {[%clk 0:00:04]} 83. Kg4 {[%clk 0:00:03]}  Kg6 {[%clk 0:00:05]} 84. Kf4 {[%clk 0:00:04]}  Kh5 {[%clk 0:00:05]} 85. Kf5 {[%clk 0:00:04]}  Kh4 {[%clk 0:00:06]} 86. Kf6 {[%clk 0:00:03]}  Kg4 {[%clk 0:00:06]} 87. Kxf7 {[%clk 0:00:04]}  Kxg5 {[%clk 0:00:07]} 88. Ke6 {[%clk 0:00:05]}  Kf4 {[%clk 0:00:08]} 89. Kd5 {[%clk 0:00:05]}  Ke3 {[%clk 0:00:03]} 90. Kc5 {[%clk 0:00:06]}  Kd3 {[%clk 0:00:04]} 91. Kxb5 {[%clk 0:00:06]}  Kc2 {[%clk 0:00:05]} 92. Kxa4 {[%clk 0:00:07]}  Kxb2 {[%clk 0:00:06]} 93. Kb4 {[%clk 0:00:07]} 1-0

[Event "November 21 Early 2023"]
[Site "https://www.chess.com"]
[Date "2023.11.21"]
[Round "10"]
[White "Sadhwani, Raunak"]
[Black "Zakhartsov, Vladimir"]
[Result "1-0"]
[Board "8"]
[TimeControl "180+1"]
[WhiteFideId "35093487"]
[BlackFideId "4145097"]
[WhiteElo "2668"]
[BlackElo "2448"]
[WhiteTeam "IND"]
[BlackTeam "RUS"]
[WhiteClock "0:00:44"]
[BlackClock "0:00:02"]

1. e4 {[%clk 0:03:00]}  g6 {[%clk 0:02:59]} 2. d4 {[%clk 0:02:59]}  Bg7 {[%clk 0:02:59]} 3. Nc3 {[%clk 0:03:00]}  d6 {[%clk 0:02:57]} 4. Be3 {[%clk 0:03:00]}  a6 {[%clk 0:02:55]} 5. Qd2 {[%clk 0:02:59]}  b5 {[%clk 0:02:50]} 6. h4 {[%clk 0:02:57]}  h5 {[%clk 0:02:49]} 7. f3 {[%clk 0:02:52]}  Nd7 {[%clk 0:02:48]} 8. Nh3 {[%clk 0:02:51]}  Bb7 {[%clk 0:02:48]} 9. Be2 {[%clk 0:02:45]}  c5 {[%clk 0:02:47]} 10. dxc5 {[%clk 0:02:35]}  Nxc5 {[%clk 0:02:45]} 11. O-O-O {[%clk 0:02:35]}  Rc8 {[%clk 0:02:42]} 12. Kb1 {[%clk 0:02:30]}  Qa5 {[%clk 0:02:29]} 13. Bd4 {[%clk 0:02:24]}  Nf6 {[%clk 0:02:22]} 14. a3 {[%clk 0:02:19]}  O-O {[%clk 0:02:07]} 15. Bxf6 {[%clk 0:02:07]}  exf6 {[%clk 0:01:57]} 16. Nd5 {[%clk 0:02:08]}  Qd8 {[%clk 0:01:49]} 17. Nhf4 {[%clk 0:02:02]}  Na4 {[%clk 0:01:46]} 18. c3 {[%clk 0:01:56]}  Bh6 {[%clk 0:01:40]} 19. Qd4 {[%clk 0:01:51]}  Bg7 {[%clk 0:01:37]} 20. g4 {[%clk 0:01:51]}  f5 {[%clk 0:01:33]} 21. Qd2 {[%clk 0:01:50]}  fxg4 {[%clk 0:01:03]} 22. fxg4 {[%clk 0:01:50]}  Nc5 {[%clk 0:01:01]} 23. Qc2 {[%clk 0:01:42]}  hxg4 {[%clk 0:00:33]} 24. Bxg4 {[%clk 0:01:43]}  Rb8 {[%clk 0:00:33]} 25. h5 {[%clk 0:01:37]}  g5 {[%clk 0:00:33]} 26. h6 {[%clk 0:01:37]}  Be5 {[%clk 0:00:34]} 27. Nd3 {[%clk 0:01:35]}  Nxd3 {[%clk 0:00:31]} 28. Qxd3 {[%clk 0:01:36]}  Bxd5 {[%clk 0:00:31]} 29. exd5 {[%clk 0:01:37]}  Kh8 {[%clk 0:00:28]} 30. Rdf1 {[%clk 0:01:33]}  a5 {[%clk 0:00:25]} 31. Qf5 {[%clk 0:01:34]}  b4 {[%clk 0:00:22]} 32. Be2 {[%clk 0:01:29]}  Qc8 {[%clk 0:00:20]} 33. cxb4 {[%clk 0:01:20]}  Qxf5+ {[%clk 0:00:13]} 34. Rxf5 {[%clk 0:01:21]}  axb4 {[%clk 0:00:14]} 35. a4 {[%clk 0:01:22]}  f6 {[%clk 0:00:12]} 36. a5 {[%clk 0:01:18]}  b3 {[%clk 0:00:11]} 37. a6 {[%clk 0:01:17]}  Rfc8 {[%clk 0:00:11]} 38. Bd3 {[%clk 0:01:16]}  Rc5 {[%clk 0:00:10]} 39. Rc1 {[%clk 0:01:06]}  Rxd5 {[%clk 0:00:08]} 40. a7 {[%clk 0:00:50]}  Rd8 {[%clk 0:00:05]} 41. Be4 {[%clk 0:00:38]}  Ra5 {[%clk 0:00:05]} 42. Rc7 {[%clk 0:00:36]}  d5 {[%clk 0:00:04]} 43. Rxe5 {[%clk 0:00:37]}  dxe4 {[%clk 0:00:02]} 44. Rxa5 {[%clk 0:00:36]}  e3 {[%clk 0:00:02]} 45. Rc1 {[%clk 0:00:37]}  e2 {[%clk 0:00:02]} 46. a8=Q {[%clk 0:00:37]}  Rxa8 {[%clk 0:00:02]} 47. Rxa8+ {[%clk 0:00:38]}  Kh7 {[%clk 0:00:03]} 48. Re1 {[%clk 0:00:38]}  Kxh6 {[%clk 0:00:03]} 49. Rxe2 {[%clk 0:00:39]}  g4 {[%clk 0:00:04]} 50. Rb8 {[%clk 0:00:40]}  f5 {[%clk 0:00:04]} 51. Rxb3 {[%clk 0:00:41]}  Kg5 {[%clk 0:00:05]} 52. Rg2 {[%clk 0:00:41]}  f4 {[%clk 0:00:05]} 53. Rf3 {[%clk 0:00:42]}  Kf5 {[%clk 0:00:05]} 54. Rf1 {[%clk 0:00:43]}  f3 {[%clk 0:00:05]} 55. Rgf2 {[%clk 0:00:43]}  Kf4 {[%clk 0:00:02]} 56. b4 {[%clk 0:00:44]} 1-0

[Event "November 21 Early 2023"]
[Site "https://www.chess.com"]
[Date "2023.11.21"]
[Round "10"]
[White "Raja Rithvik R"]
[Black "Bortnyk, Olexandr"]
[Result "0-1"]
[Board "9"]
[TimeControl "180+1"]
[WhiteFideId "35007394"]
[BlackFideId "14120828"]
[WhiteElo "2395"]
[BlackElo "2725"]
[WhiteTeam "IND"]
[BlackTeam "UKR"]
[WhiteClock "0:00:06"]
[BlackClock "0:00:41"]

1. Nf3 {[%clk 0:02:57]}  Nf6 {[%clk 0:03:00]} 2. c4 {[%clk 0:02:56]}  d6 {[%clk 0:02:59]} 3. d4 {[%clk 0:02:56]}  g6 {[%clk 0:03:00]} 4. g3 {[%clk 0:02:57]}  Bg7 {[%clk 0:03:01]} 5. Nc3 {[%clk 0:02:57]}  O-O {[%clk 0:02:59]} 6. Bg2 {[%clk 0:02:57]}  Bf5 {[%clk 0:03:00]} 7. Nh4 {[%clk 0:02:57]}  Bc8 {[%clk 0:03:00]} 8. O-O {[%clk 0:02:55]}  c5 {[%clk 0:02:57]} 9. dxc5 {[%clk 0:02:53]}  dxc5 {[%clk 0:02:55]} 10. Be3 {[%clk 0:02:53]}  Nbd7 {[%clk 0:02:43]} 11. Qb3 {[%clk 0:02:36]}  Ng4 {[%clk 0:02:29]} 12. Bf4 {[%clk 0:02:29]}  e6 {[%clk 0:02:16]} 13. Bd6 {[%clk 0:02:28]}  Re8 {[%clk 0:02:14]} 14. Rfd1 {[%clk 0:02:28]}  a6 {[%clk 0:01:53]} 15. Bxb7 {[%clk 0:02:16]}  Bxb7 {[%clk 0:01:54]} 16. Qxb7 {[%clk 0:02:17]}  Bd4 {[%clk 0:01:35]} 17. e3 {[%clk 0:02:10]}  Bxc3 {[%clk 0:01:35]} 18. bxc3 {[%clk 0:02:09]}  Qf6 {[%clk 0:01:36]} 19. Nf3 {[%clk 0:01:57]}  Nde5 {[%clk 0:01:05]} 20. Kg2 {[%clk 0:00:54]}  Nxc4 {[%clk 0:01:05]} 21. Bxc5 {[%clk 0:00:55]}  Rac8 {[%clk 0:01:05]} 22. Qd7 {[%clk 0:00:26]}  Qxf3+ {[%clk 0:01:02]} 23. Kxf3 {[%clk 0:00:22]}  Nge5+ {[%clk 0:01:02]} 24. Ke4 {[%clk 0:00:14]}  Nxd7 {[%clk 0:01:03]} 25. Rxd7 {[%clk 0:00:15]}  Rxc5 {[%clk 0:01:04]} 26. Kd4 {[%clk 0:00:16]}  Rec8 {[%clk 0:01:00]} 27. Rb1 {[%clk 0:00:13]}  Ne5 {[%clk 0:00:52]} 28. Rd8+ {[%clk 0:00:12]}  Rxd8+ {[%clk 0:00:50]} 29. Kxc5 {[%clk 0:00:06]}  Rc8+ {[%clk 0:00:41]} 0-1

[Event "November 21 Early 2023"]
[Site "https://www.chess.com"]
[Date "2023.11.21"]
[Round "10"]
[White "Javakhadze, Zurab"]
[Black "Le, Tuan Minh"]
[Result "0-1"]
[Board "10"]
[TimeControl "180+1"]
[WhiteFideId "13603647"]
[BlackFideId "12401153"]
[WhiteElo "2381"]
[BlackElo "2561"]
[WhiteTeam "GEO"]
[BlackTeam "VIE"]
[WhiteClock "0:00:00"]
[BlackClock "0:00:57"]

1. Nf3 {[%clk 0:03:00]}  d5 {[%clk 0:02:57]} 2. g3 {[%clk 0:03:01]}  g6 {[%clk 0:02:48]} 3. Bg2 {[%clk 0:03:00]}  Bg7 {[%clk 0:02:48]} 4. O-O {[%clk 0:03:01]}  Nf6 {[%clk 0:02:47]} 5. d4 {[%clk 0:02:58]}  O-O {[%clk 0:02:47]} 6. c4 {[%clk 0:02:58]}  c6 {[%clk 0:02:48]} 7. a4 {[%clk 0:02:58]}  a5 {[%clk 0:02:44]} 8. Nc3 {[%clk 0:02:53]}  dxc4 {[%clk 0:02:42]} 9. e3 {[%clk 0:02:39]}  Nd5 {[%clk 0:02:34]} 10. Qe2 {[%clk 0:02:31]}  Nb6 {[%clk 0:02:35]} 11. Ne4 {[%clk 0:02:04]}  Na6 {[%clk 0:02:08]} 12. Nfd2 {[%clk 0:01:58]}  Nb4 {[%clk 0:01:55]} 13. Nxc4 {[%clk 0:01:38]}  Nxc4 {[%clk 0:01:55]} 14. Qxc4 {[%clk 0:01:39]}  e5 {[%clk 0:01:56]} 15. dxe5 {[%clk 0:01:33]}  Bxe5 {[%clk 0:01:57]} 16. Nc5 {[%clk 0:01:29]}  Qe7 {[%clk 0:01:50]} 17. Rd1 {[%clk 0:01:25]}  b6 {[%clk 0:01:38]} 18. Ne4 {[%clk 0:01:17]}  Be6 {[%clk 0:01:34]} 19. Qe2 {[%clk 0:01:10]}  Bb3 {[%clk 0:01:34]} 20. Rf1 {[%clk 0:01:10]}  Rad8 {[%clk 0:01:26]} 21. Bd2 {[%clk 0:01:02]}  f5 {[%clk 0:01:16]} 22. Nc3 {[%clk 0:00:56]}  Qf7 {[%clk 0:01:12]} 23. Rfc1 {[%clk 0:00:31]}  Bc4 {[%clk 0:01:07]} 24. Qd1 {[%clk 0:00:28]}  Rd6 {[%clk 0:01:04]} 25. f4 {[%clk 0:00:15]}  Bg7 {[%clk 0:01:00]} 26. Qe1 {[%clk 0:00:09]}  Nd3 {[%clk 0:00:59]} 27. Qd1 {[%clk 0:00:09]}  Rfd8 {[%clk 0:00:57]} 28. Qc2 {[%clk 0:00:00]}  Nb4 {[%clk 0:00:57]} 0-1